Cogmind - Beta 13 X1 @@@ ROGUE MODE // 2023.10.05 @ 18:04:23 Player: Exp. Geonium Core Result: Destroyed by 8R-AWN with 8R-AWN's Boregun Performance ------------- Evolutions (1) 500 Regions Visited (5) 1000 Robots Destroyed (51) 255 Value Destroyed (1014) 1014 Prototype IDs (28) 560 Alien Tech Used (0) 0 Bonus (339) 339 TOTAL SCORE: 3668 Bonus ------- Follower Combat Kills 39 Aligned with FarCom 300 Cogmind --------- Core Integrity 0/400 Matter 75/300 Energy 100/100 System Corruption 0% Temperature Cool (0) Movement Walking (100) Location -9/Exiles Parts ------- > --- POWER (1) -------- (None) > --- PROPULSION (3) --- Advanced Myomer Leg Potential Leg Potential Leg > --- UTILITY (3) ------ High-capacity Storage Unit > --- WEAPON (2) ------- Flail > --- INVENTORY (20) --- Ion Engine Splice Drone Bay (6/6) Rocket Launcher Welding Torch Peak State ------------ > --- POWER ------------ (None) > --- PROPULSION ------- Advanced Myomer Leg Potential Leg Potential Leg > --- UTILITY ---------- High-capacity Storage Unit > --- WEAPON ----------- Light Assault Rifle Flail > --- INVENTORY -------- Ion Engine Splice Drone Bay Rocket Launcher Welding Torch [Rating: 33] Favorites ----------- Power Ion Engine Engine Ion Engine Propulsion Light Treads Treads Light Treads Leg Aluminum Leg Utility High-capacity Storage Unit Device Improved Heat Sink Storage High-capacity Storage Unit Processor Visual Processing Unit Protection Medium Armor Plating Weapon Improved EM Shotgun Energy Gun Improved EM Shotgun Ballistic Gun Heavy Assault Rifle Impact Weapon Flail Build | -11 -10 -10 -9 -9 -9 ------- Run | Jun Mat Min Mat Min Exi Slots Evolved 2 | . . . 2 . . Power . | . . . . . . Propulsion 1 | . . . 1 . . Utility 1 | . . . 1 . . Weapon . | . . . . . . Parts Attached 42 | . . 3 26 5 8 Power 2 | . . . 1 1 . Engine 2 | . . . 1 1 . Core . | . . . . . . Reactor . | . . . . . . Propulsion 15 | . . . 10 . 5 Treads 12 | . . . 10 . 2 Leg 3 | . . . . . 3 Wheel . | . . . . . . Hover . | . . . . . . Flight . | . . . . . . Utility 10 | . . 1 8 1 . Device 6 | . . 1 4 1 . Storage 1 | . . . 1 . . Processor 2 | . . . 2 . . Hackware . | . . . . . . Protection 1 | . . . 1 . . Artifact . | . . . . . . Weapon 15 | . . 2 7 3 3 Energy Gun 6 | . . . 6 . . Energy Cannon . | . . . . . . Ballistic Gun 8 | . . 2 1 3 2 Ballistic Cannon . | . . . . . . Launcher . | . . . . . . Special Weapon . | . . . . . . Impact Weapon 1 | . . . . . 1 Slashing Weapon . | . . . . . . Piercing Weapon . | . . . . . . Special Melee Weapon . | . . . . . . Unidentified Prototypes 5 | . . . 2 2 1 Corrupted Parts 1 | . . 1 . . . System Corruption 3 | . . 3 . . . Parts Lost 21 | . . 1 9 . 11 Power 2 | . . . 1 . 1 Propulsion 8 | . . . 3 . 5 Utility 3 | . . . 2 . 1 Weapon 8 | . . 1 3 . 4 Highest Loss Streak 11 | . . 1 4 . 11 To Critical Strikes 9 | . . . . . 9 Average Slot Usage (%) 91 | . 85 96 92 96 85 Engine 11 | . 14 14 10 11 10 Treads 25 | . . . 26 33 29 Leg 6 | . 28 28 3 . 3 Device 10 | . . 11 10 11 10 Storage 11 | . 14 14 11 11 11 Processor 3 | . . . 4 6 . Protection 1 | . . . 4 . . Energy Gun 11 | . 28 16 13 15 . Ballistic Gun 11 | . . 10 7 6 20 Naked Turns . | . . . . . . Heaviest Build 63 | 14 14 14 58 63 54 Greatest Support 90 | 20 20 20 60 60 90 Greatest Overweight (x) 2 | . . . 2 1 . Average Overweight (x) . | . . . . . . Largest Inventory Capacity 20 | . 8 8 20 20 20 Average Capacity 18 | . 8 8 19 20 20 Most Carried 20 | . 8 8 20 20 20 Average Carried 15 | . 7 7 14 19 16 Final Capacity 20 | 8 8 8 20 20 20 Final Carried 20 | 6 8 7 20 20 4 Class Distribution -------------------- 59% | Scavenger-Mutant 40% | Mutant Dominant Class ---------------- Mutant | -10/Materials Mutant | -10/Mines Mutant | -9/Materials Scavenger-Mutant | -9/Mines Scavenger-Mutant | -9/Exiles Resources | -11 -10 -10 -9 -9 -9 ----------- Run | Jun Mat Min Mat Min Exi Matter Collected 756 | 200 . 46 360 90 60 Remotely . | . . . . . . Salvage Created 1847 | . 85 205 1552 . 5 Parts 114 | . 9 11 94 . . Haulers Intercepted 4 | . . . 4 . . Recyclers Shooed 6 | . . . 6 . . Parts Field Recycled . | . . . . . . Retrieved Matter . | . . . . . . Parts Self-Destructed . | . . . . . . Prevented . | . . . . . . Kills | -11 -10 -10 -9 -9 -9 ------- Run | Jun Mat Min Mat Min Exi Combat Hostiles Destroyed 33 | . 2 8 22 . 1 Guns 30 | . 2 7 20 . 1 AOE 2 | . . 1 1 . . Classes Destroyed 11 | . 3 1 6 . 1 Worker 3 | . . . 3 . . Builder 2 | . . . 2 . . Hauler 4 | . . . 4 . . Recycler 3 | . . . 3 . . Mechanic 1 | . 1 . . . . Operator 1 | . . . 1 . . Watcher 5 | . 1 . 4 . . Swarmer 13 | . 2 6 5 . . Grunt 15 | . . 2 13 . . Sentry 4 | . . . 4 . . Assembled 1 | . . . . . 1 Best Kill Streak 9 | . 2 5 9 . 1 Combat Bots Only 5 | . 2 5 5 . 1 Max Kills in Single Turn 2 | . 1 2 2 . 1 Gunslinging 1 | . . 1 . . . Exploded 1 | . . 1 1 . . Melee . | . . . . . . Uniques/NPCs Destroyed . | . . . . . . Combat | -11 -10 -10 -9 -9 -9 -------- Run | Jun Mat Min Mat Min Exi Damage Taken 3040 | . 94 298 1208 . 1440 Core 538 | . 18 102 162 . 256 Absorbed by Shields . | . . . . . . Core Remaining (%) 76 | 100 . 52 . . . Volleys Fired 199 | . 10 17 124 . 48 Largest 2 | . 2 2 2 . 2 Hottest 95 | . 90 90 95 . 43 Shots Fired 364 | . 20 30 222 . 92 Gun 364 | . 20 30 222 . 92 Cannon . | . . . . . . Launcher . | . . . . . . Special . | . . . . . . Kinetic 193 | . . 5 96 . 92 Thermal 122 | . 10 17 95 . . Explosive . | . . . . . . Electromagnetic 49 | . 10 8 31 . . Robot Hit Streak 15 | . 3 6 12 . 15 Robot Miss Streak 6 | . 2 2 6 . 3 Penetration Max . | . . . . . . Secondary Targets 6 | . . 3 3 . . Max Gunslinging Chain 1 | . . 1 1 . . Shots Hit Robots 249 | . 9 19 146 . 75 Core Hits 86 | . 5 10 62 . 9 Critical Kills . | . . . . . . Critical Parts Destroyed . | . . . . . . Critical Strikes 6 | . 1 . 4 . 1 Burn 5 | . 1 . 4 . . Smash 1 | . . . . . 1 Melee Attacks 19 | . . . . . 19 Impact 19 | . . . . . 19 Slashing . | . . . . . . Piercing . | . . . . . . Sneak Attacks . | . . . . . . Combat Hostiles . | . . . . . . Follow-up Attacks . | . . . . . . Damage Inflicted 3776 | . 137 265 2077 17 1280 Guns 3082 | . 103 224 1914 . 841 Cannons . | . . . . . . Explosions 189 | . 34 41 114 . . Melee 439 | . . . . . 439 Ramming 66 | . . . 49 17 . Kinetic 1648 | . . 9 798 . 841 Thermal 1051 | . 71 179 801 . . Explosive . | . . . . . . Electromagnetic 572 | . 66 77 429 . . Impact 439 | . . . . . 439 Slashing . | . . . . . . Piercing . | . . . . . . Highest Corruption 3 | . . 3 . . . Average Corruption 3 | . . 3 . . . Corruption Purged . | . . . . . . Corruption Blocked . | . . . . . . Effects 9 | . . 9 . . . Message Errors 3 | . . 3 . . . Matter Fused 2 | . . 2 . . . Heat Flow Errors 1 | . . 1 . . . Energy Discharges 1 | . . 1 . . . Data Loss (minor) 1 | . . 1 . . . Data Loss (major) 1 | . . 1 . . . Overload Shots . | . . . . . . Overflow Damage 53 | . . 20 12 . 21 Projectiles . | . . . . . . Explosions 20 | . . 20 . . . Melee 33 | . . . 12 . 21 Knockbacks 5 | . . . . . 5 Impact 5 | . . . . . 5 Kinetic . | . . . . . . Secondary . | . . . . . . Self-Inflicted Damage 107 | . 36 23 48 . . Shots 3 | . 1 1 1 . . Rammed 6 | . . . 4 2 . Targets Rammed 7 | . . . 5 2 . Kicked . | . . . . . . Crushed 1 | . . . 1 . . Highest Temperature 172 | . 132 149 172 . . Average Temperature 51 | . 44 41 61 . . Received Heat Transfer 474 | . . 30 444 . . Siege Activations . | . . . . . . Robots Corrupted . | . . . . . . Combat Hostiles . | . . . . . . Parts Fried 1 | . . . 1 . . Impact Corruptions 3 | . . . 1 . 2 Robots Melted 1 | . . . 1 . . Combat Hostiles 1 | . . . 1 . . Parts Melted 4 | . 1 . 3 . . Heat Transferred 3073 | . 235 457 2381 . . Parts Sabotaged . | . . . . . . Parts Stolen . | . . . . . . Parts Stripped . | . . . . . . Power Chain Reactions 2 | . 1 1 . . . Missiles Intercepted . | . . . . . . Alert | -11 -10 -10 -9 -9 -9 ------- Run | Jun Mat Min Mat Min Exi Peak Influence 378 | . 86 234 378 147 . Initial 147 | . . 33 13 147 . Average 130 | . 45 180 194 55 . Maximum Alert Level 1 | . . 1 1 . . Low Security (%) 73 | . 100 40 58 100 . Level 1 26 | . . 59 41 . . Level 2 . | . . . . . . Level 3 . | . . . . . . Level 4 . | . . . . . . Level 5 . | . . . . . . High Security . | . . . . . . Max Security . | . . . . . . Squads Dispatched 5 | . . . 5 . . Investigation 3 | . . . 3 . . Extermination . | . . . . . . Reinforcement 2 | . . . 2 . . Assault . | . . . . . . Garrison . | . . . . . . Intercept . | . . . . . . Searches Triggered . | . . . . . . Construction Impeded 1 | . . . 1 . . Haulers Reinforced . | . . . . . . Active Scanning Responses . | . . . . . . Cargo Convoy Interrupts . | . . . . . . Stealth | -11 -10 -10 -9 -9 -9 --------- Run | Jun Mat Min Mat Min Exi Distress Signals 3 | . . . 3 . . Communications Jammed . | . . . . . . Distress Signals . | . . . . . . Times Spotted 53 | . 7 10 31 1 4 Peak Tracking Total 9 | . 3 3 5 1 9 Tactical Retreats 1 | . . . . . 1 Traps | -11 -10 -10 -9 -9 -9 ------- Run | Jun Mat Min Mat Min Exi Traps Triggered 3 | . . . 3 . . Indirectly . | . . . . . . Trap Hack Attempts . | . . . . . . Triggered . | . . . . . . Disarmed . | . . . . . . Reprogrammed . | . . . . . . Reused 5 | . . . . . 5 Traps Extracted . | . . . . . . Installed 5 | . . . . . 5 Triggered . | . . . . . . Most Traps Carried 5 | . . . . 5 5 Machines | -11 -10 -10 -9 -9 -9 ---------- Run | Jun Mat Min Mat Min Exi Machines Disabled 4 | . 1 . 1 . 2 Max in Single Turn 1 | . 1 . 1 . 1 Machines Repaired . | . . . . . . Machines Sabotaged . | . . . . . . Overloaded Fab Kills . | . . . . . . Hacking | -11 -10 -10 -9 -9 -9 --------- Run | Jun Mat Min Mat Min Exi Machines Accessed 8 | . . . 6 1 1 Terminals 4 | . . . 4 . . Fabricators . | . . . . . . Repair Stations . | . . . . . . Recycling Units 1 | . . . 1 . . Scanalyzers 1 | . . . 1 . . Garrison Access . | . . . . . . Total Hacks 21 | . . . 19 1 1 Successful 7 | . . . 5 1 1 Failed 14 | . . . 14 . . Catastrophic 4 | . . . 4 . . Database Lockouts . | . . . . . . Manual 8 | . . . 7 . 1 Terminals 12 | . . . 12 . . Fabricators . | . . . . . . Repair Stations . | . . . . . . Recycling Units 1 | . . . 1 . . Scanalyzers 6 | . . . 6 . . Garrison Access . | . . . . . . Terminal Hacks 3 | . . . 1 1 1 Robot Analysis 1 | . . . 1 . . Open Door 1 | . . . . 1 . Derelict Proto ID Bank 1 | . . . . . 1 Fabricator Hacks . | . . . . . . Repair Station Hacks . | . . . . . . Recycling Unit Hacks 1 | . . . 1 . . Report Inventory 1 | . . . 1 . . Scanalyzer 3 | . . . 3 . . Insert Component 1 | . . . 1 . . Analyze 2 | . . . 2 . . Garrison Access Hacks . | . . . . . . Unauthorized Hacks . | . . . . . . Terminals . | . . . . . . Fabricators . | . . . . . . Repair Stations . | . . . . . . Recycling Units . | . . . . . . Scanalyzers . | . . . . . . Garrison Access . | . . . . . . Data Cores Recovered . | . . . . . . Used . | . . . . . . Hacking Detections 5 | . . . 5 . . Full Trace Events 2 | . . . 2 . . Feedback Events . | . . . . . . Feedback Blocked . | . . . . . . Robot Schematics Acquired . | . . . . . . Robots Built . | . . . . . . Authchips . | . . . . . . Time . | . . . . . . Total Robot Build Rating . | . . . . . . Part Schematics Acquired . | . . . . . . Parts Built . | . . . . . . Authchips . | . . . . . . Time . | . . . . . . Total Part Build Rating . | . . . . . . Parts Repaired . | . . . . . . Time . | . . . . . . Parts Recycled . | . . . . . . Recycled Matter . | . . . . . . Retrieved Matter . | . . . . . . Retrieved Components . | . . . . . . Parts Scanalyzed 1 | . . . 1 . . Part Schematics Acquired . | . . . . . . Parts Damaged . | . . . . . . Bothacking | -11 -10 -10 -9 -9 -9 ------------ Run | Jun Mat Min Mat Min Exi Used RIF Installer . | . . . . . . Robots Hacked . | . . . . . . Non-combat . | . . . . . . Combat . | . . . . . . Robot Hacks Applied . | . . . . . . Relay Couplers Released . | . . . . . . Fabnet Peak Effective % . | . . . . . . Robots Rewired . | . . . . . . Allies Hacked . | . . . . . . Hacks Repelled . | . . . . . . Allies | -11 -10 -10 -9 -9 -9 -------- Run | Jun Mat Min Mat Min Exi Total Allies 2 | . . . . 2 . Largest Group 2 | . . . . 2 2 Highest-Rated Group 40 | . . . . 40 40 Highest-Rated Ally 31 | . . . . 31 31 Total Orders . | . . . . . . Ally Attacks 2 | . . . . 2 . Total Damage 20 | . . . . 20 . Kills 1 | . . . . 1 . Allies Corrupted . | . . . . . . Allies Melted . | . . . . . . Intel | -11 -10 -10 -9 -9 -9 ------- Run | Jun Mat Min Mat Min Exi Robot Analysis Total 1 | . . . 1 . . Derelict Logs Recovered 3 | . . . . 3 . Drone Launches . | . . . . . . Drone Recoveries . | . . . . . . Exploration | -11 -10 -10 -9 -9 -9 ------------- Run | Jun Mat Min Mat Min Exi Turns Passed 4056 | . 149 456 1195 1151 1105 Spaces Moved 2091 | 1 98 335 465 633 559 Core . | . . . . . . Treads 1560 | . . . 402 633 525 Legs 531 | 1 98 335 63 . 34 Wheels . | . . . . . . Hover . | . . . . . . Flight . | . . . . . . Fastest Speed 90 | 120 120 120 120 160 90 Average Speed 153 | 120 120 120 168 163 156 Slowest Speed 260 | 120 120 120 260 240 160 Overloaded Moves . | . . . . . . Propulsion Burnouts . | . . . . . . Robots Hopped . | . . . . . . Cave-ins Triggered . | . . . . . . Exploration Rate (%) 50 | 2 20 62 51 99 68 Regions Visited 5 Branch Regions 3 Pre-discovered Areas 1 | . . . . 1 . Known Exits Taken . | . . . . . . Unknown Exits Taken 5 | 1 1 1 1 1 . Scrap Searched 4 | . . 2 . 2 . Spaces Dug . | . . . . . . Terrain Destroyed 36 | . 3 6 27 . . Melee . | . . . . . . Projectile . | . . . . . . AOE 36 | . 3 6 27 . . Terrain Rammed . | . . . . . . Walls Destroyed . | . . . . . . Machines Disabled . | . . . . . . Actions | -11 -10 -10 -9 -9 -9 --------- Run | Jun Mat Min Mat Min Exi Total 2567 | . 109 360 666 754 678 Wait 126 | . . 3 9 96 18 Move 2086 | . 97 334 464 632 559 Hop . | . . . . . . Pick Up 40 | . 2 1 24 7 6 Fast Attach 15 | . . 1 12 1 1 Attach 18 | . . 1 8 2 7 Detach 4 | . . . 1 3 . Swap 9 | . . 1 6 2 . Drop 39 | . . 2 13 9 15 Fire 199 | . 10 17 124 . 48 Melee 19 | . . . . . 19 Ram . | . . . . . . Kick . | . . . . . . Crush 7 | . . . 5 2 . Escape Stasis . | . . . . . . Rewire . | . . . . . . Trap 5 | . . . . . 5 Miscellaneous . | . . . . . . Route ------- -11/Junkyard -10/Materials -10/Mines -9/Materials (discovered 2 exits: [*Mat] / *Min) -9/Mines (discovered 3 exits: [*Mat x2] / *Exi) -9/Exiles History --------- Turn | Location | Event 1 | -11/Junkyard | Discovered new exit (range 0) 1 | -11/Junkyard | Entered Materials 92 | -10/Materials | Discovered new exit (range 12) 150 | -10/Materials | Entered Mines 152 | -10/Mines | Met a Derelict bent on vengeance 179 | -10/Mines | Discovered new exit (range 6) 312 | -10/Mines | Build established: Mutant 395 | -10/Mines | Found a damaged Exp. Sensor Array with a note attached 398 | -10/Mines | Found Prototype Device 606 | -10/Mines | Entered Materials 606 | -9/Materials | Evolved 2 slots: Propulsion x1, Utility x1 623 | -9/Materials | Identified Exp. Sensor Array 825 | -9/Materials | Lost 3 parts (2n1u) 1339 | -9/Materials | Discovered new exit (range 4) 1521 | -9/Materials | Lost 4 parts (1p1n2w) 1660 | -9/Materials | Discovered new exit (range 12) 1801 | -9/Materials | Entered Mines 1812 | -9/Mines | Received a Rocket Launcher from a helpful Derelict 1856 | -9/Mines | Build established: Scavenger-Mutant 2073 | -9/Mines | Found a hidden stash of uninstalled traps 2183 | -9/Mines | Assembled infested the area 2426 | -9/Mines | Discovered new exit (range 14) 2449 | -9/Mines | Discovered new exit (range 9) 2514 | -9/Mines | Learned Materials terminal intel 2519 | -9/Mines | Found the Drone Emporium 2522 | -9/Mines | Learned 8 Materials zone layouts 2528 | -9/Mines | Found Prototype Device 2528 | -9/Mines | Identified Splice Drone Bay 2751 | -9/Mines | Discovered new exit (range 5) 2869 | -9/Mines | Learned location of Storage (-8) 2944 | -9/Mines | Deemed a non-threat by the Exiles lab entrance 2952 | -9/Mines | Entered Exiles 2952 | -9/Exiles | Accompanied by 2 allies 2982 | -9/Exiles | Led the pair of lost Derelicts to a safe place 2991 | -9/Exiles | Met 8R-AWN 3018 | -9/Exiles | Met EX-HEX 3066 | -9/Exiles | Met EX-BIN 3084 | -9/Exiles | Aligned with FarCom system 3085 | -9/Exiles | Given EX-Vault access code 3122 | -9/Exiles | Opened EX-Vault 3134 | -9/Exiles | Found Potential Leg 3137 | -9/Exiles | Found Potential Leg 3170 | -9/Exiles | Warned to stay clear of 0b10 Research branches 3269 | -9/Exiles | Met EX-DEC 3759 | -9/Exiles | Attacked by the Exiles 3869 | -9/Exiles | Core integrity fell below 50% 3978 | -9/Exiles | Core integrity fell below 20% 4030 | -9/Exiles | Lost 11 parts (1p5n1u4w) 4057 | -9/Exiles | Destroyed by 8R-AWN with 8R-AWN's Boregun Last Messages --------------- 04017_ HV Slug penetrates Wall. 04017_ HV Slug penetrates Earth. 04017_ 8R-AWN knocked back. 04020_ 8R-AWN suffers critical hit (Smash). 04021_ Penetrated by HV Slug. 04021_ HV Slug penetrates Wall. 04025_ Penetrated by HV Slug. 04030_ 8R-AWN knocked back. 04034_ Penetrated by HV Slug. 04034_ HV Slug penetrates Wall. 04036_ Destroyed Adv. Weapon Cycler. 04036_ 8R-AWN system corrupted by crushing effect. 04037_ Penetrated by HV Slug. 04042_ HV Slug penetrates Wall. 04047_ Penetrated by HV Slug. 04047_ HV Slug penetrates Wall. 04047_ HV Slug penetrates Earth. 04052_ Penetrated by HV Slug. 04052_ HV Slug penetrates Earth. 04057_ Penetrated by HV Slug. Map ----- +----------------------------------------------------+ | ?????????????????????????????????????????????????? | | ?????????????????????????????????????????????????? | | ?????????????????????????????????????????????????? | | ?????????????????????????????????????????????????? | | ?????????????????????????????????????????????????? | | ?????????????????????????????????????????????????? | | ?????????????????????????????????????????????????? | | ?????????????????????????????????????????????????? | | ?????????????????????????????????????????????????? | | ?????????????????????????????????????????????????# | | ?????????????????????????????????????????????????# | | ?????????????????????????????????????????????????# | | ?????????????????????????????????????????????????# | | ?????????????????????????????????????????????????# | | ?????????????????????????????????????????????????? | | ?????????????????????????????????????????????????? | | ?????????????????????????????????????????????????? | | ????????????????????????#######??????????????????? | | ?????????? ######???????#!!! "#??????????????????? | | ????????? #""#??????#!! "#??????????????????? | | ????????? ??????#[[ "#??????????????????? | | ????????" #????## ##?????????########? | | ????????? "####" ;#?????????# """#? | | ?????????# ##" ;#?????????#"" """#? | | ??????????# # g ;;;#?????????#"" #? | | ?????????????# @ # ##?????????#"" #? | | ???????????????## ;;#??????????#"" "#? | | ????????????????##; ;#??????????# ""#? | | ??????????########" %= ;#####??????#"" ""#? | | ??????????# !!""""" ;# #??????### ###? | | ??????????#! "##; ;"####???### ###? | | ??????????#! "###; "#####X# #"## | | ??????????#! ## #" """ | | ??????????# !""""""#### ##"# | | ??????????##########?# ?#### | | ?????????????????????##?????#;# | | ????????????????????????????# ### % | | ????????????????????????????# #?## | | ????????????????????????????# #??## | | ????????????????????????????# #???## | | ????????????????????????????# #????#""" | | ????????????????????????????# #???##" | | ????????????????????????????# ????#"" | | ?????????????????????????????#????#""" " | | ?????????????????????????????????#""" "" | | ?????????????????????????????????#""" " | | ??????????????????????????????????"" | | ??????????????????????????????????""" | | ??????????????????????????????????"" | | ??????????????????????????????????#"" | +----------------------------------------------------+ Best States ------------- Heat Dissipation 42 Energy Generation 14 Energy Capacity 280 Matter Stores 300 Matter Capacity 300 Sight Range 18 Terrain Scan Density 10 Armor Coverage 225 Evasion (%) 55 Recoil Reduction 3 Item Schematics ----------------- None Robot Schematics ------------------ None Fabricated ------------ Nothing Alien Tech Used ----------------- None Achievements -------------- None Challenges ------------ None Game ------ Seed ReactiveProjectionLog Manual? 0 Play Time 00:25:03 Cumulative 458.8 hours Start 2023.10.05 @ 17:37:56 End 2023.10.05 @ 18:04:23 Sessions 1 Manual Loads 0 Difficulty Rogue Special Mode None Game No. 510 Rogue 510 Adventurer 0 Explorer 0 Win Type - Total 12 Types 8/0/3/1/0/0/0/0/0 Lore% 82 Gallery% 90 Achievement% 80 Wizard Run 0 Options --------- ASCII 0 Keyboard 0 Movement Numpad Keybinds 0 Fullscreen 1 Font 18/Terminus Map View 76x50 Tactical HUD 1 Map Filters NONE Filters NONE Steam 1 RUN: 418424e4-a53d-4305-8792-809b81bc0c7a